bitfinex/quotes_SOLUSD_20241210
["timestamp","ask_amount","ask_price","bid_price","bid_amount"]
[1733804088861,0.87721796,213.81,213.65,4.5863]
[1733804089061,0.87721796,213.81,213.64,27.54038203]
[1733804089266,0.87721796,213.81,213.65,27.54038203]
[1733804089652,0.87721796,213.81,213.66,27.54038203]
[1733804089852,32.2507,213.82,213.69,27.54038203]
[1733804090059,0.87692765,213.81,213.7,27.54038203]
[1733804090244,0.87692765,213.81,213.68,27.54038203]
[1733804090548,0.87692765,213.81,213.66,27.54038203]
[1733804091248,20.0,213.77,213.63,27.54038203]
[1733804091467,7.6826,213.75,213.6,32.12668203]
[1733804091671,20.0,213.72,213.6,344.12668203]
[1733804092177,20.0,213.72,213.6,339.54038203]
[1733804092514,0.87743724,213.74,213.62,27.54038203]
[1733804092670,7.6826,213.75,213.63,27.54038203]
[1733804092880,7.6826,213.75,213.67,27.54038203]
[1733804093479,7.6826,213.75,213.69,27.54038203]
[1733804093790,7.6826,213.75,213.7,27.54038203]
[1733804093978,7.6826,213.75,213.69,27.54038203]
[1733804094596,7.6826,213.75,213.7,27.54038203]
[1733804094766,4.5681,213.82,213.7,27.54038203]
[1733804094767,7.6826,213.8,213.7,27.54038203]
[1733804094965,7.6826,213.8,213.71,27.54038203]
[1733804095262,7.6826,213.8,213.73,27.54038203]
[1733804096188,7.6826,213.8,213.71,312.0]
[1733804096401,7.6826,213.8,213.71,27.54038203]
[1733804096907,7.6826,213.8,213.72,27.54038203]
[1733804097196,7.6826,213.8,213.71,27.54038203]
[1733804097594,7.6826,213.8,213.72,27.54038203]
[1733804099304,7.6826,213.8,213.72,339.54038203]
[1733804099787,7.6826,213.86,213.75,27.54038203]
[1733804100076,8.55943867,213.86,213.74,27.54038203]
[1733804100297,8.55943867,213.86,213.73,27.54038203]
[1733804100775,7.6826,213.86,213.75,27.54038203]
[1733804101084,0.87684415,213.85,213.73,27.54038203]
[1733804102412,20.0,213.83,213.67,27.54038203]
[1733804102587,20.0,213.83,213.61,27.54038203]
[1733804102588,20.0,213.78,213.61,27.54038203]
[1733804102785,20.0,213.74,213.59,27.54038203]
[1733804102997,0.87752758,213.73,213.57,27.54038203]
[1733804103487,20.87752758,213.73,213.57,27.54038203]
[1733804103697,20.87752758,213.73,213.55,28.12472623]
[1733804103698,43.776884,213.72,213.55,28.12472623]
[1733804103889,20.0,213.69,213.55,0.5843442]
[1733804104098,20.87764081,213.68,213.55,0.5843442]
[1733804104298,20.0,213.64,213.55,0.5843442]
[1733804104509,0.87788946,213.63,213.55,0.5843442]
[1733804105520,20.0,213.59,213.55,0.5843442]
[1733804105981,0.87797244,213.58,213.55,0.5843442]
[1733804107268,20.87797244,213.58,213.55,0.5843442]
[1733804108594,20.87797244,213.58,213.42,27.54038203]
[1733804108971,20.87797244,213.58,213.39,20.0]
[1733804109178,20.87797244,213.58,213.41,27.54038203]
[1733804109880,20.0,213.54,213.33,0.5843442]
[1733804110078,20.0,213.52,213.35,27.54038203]
[1733804110270,0.87851504,213.51,213.35,27.54038203]
[1733804110470,20.0,213.47,213.33,28.12472623]
[1733804110687,0.8785734,213.46,213.33,0.5843442]
[1733804111492,7.4881,213.45,213.33,0.5843442]
[1733804111700,7.4881,213.45,213.35,27.54038203]
[1733804111878,7.4881,213.51,213.4,27.54038203]
[1733804112194,7.4881,213.51,213.42,27.54038203]
[1733804112378,7.4881,213.51,213.44,27.54038203]
[1733804112694,7.4881,213.57,213.48,27.54038203]
[1733804112891,7.4881,213.57,213.49,27.54038203]
[1733804113209,7.4881,213.57,213.45,27.54038203]
[1733804113502,7.4881,213.57,213.47,27.54038203]
[1733804113869,7.4881,213.57,213.46,27.54038203]
[1733804114094,7.4881,213.57,213.47,27.54038203]
[1733804114386,7.4881,213.57,213.5,27.54038203]
[1733804114783,7.4881,213.57,213.49,27.54038203]
[1733804115086,7.4881,213.57,213.48,27.54038203]
[1733804115289,7.4881,213.57,213.49,27.54038203]
[1733804115590,7.4881,213.57,213.51,27.54038203]
[1733804115887,0.8779826,213.65,213.51,312.0]
[1733804115888,7.4881,213.63,213.51,312.0]
[1733804116093,7.4881,213.63,213.51,339.54038203]
[1733804116277,7.4881,213.7,213.57,27.54038203]
[1733804116478,7.4881,213.7,213.51,27.54038203]
[1733804116479,7.4881,213.7,213.58,27.54038203]
[1733804116681,7.4881,213.7,213.59,27.54038203]
[1733804116883,7.4881,213.7,213.6,27.54038203]
[1733804117085,7.4881,213.7,213.62,27.54038203]
[1733804117275,7.4881,213.7,213.64,27.54038203]
[1733804117482,7.4881,213.77,213.65,27.54038203]
[1733804118000,7.4881,213.77,213.58,94.6726]
[1733804118207,7.4881,213.77,213.69,27.54038203]
[1733804118395,7.4881,213.77,213.65,27.54038203]
[1733804118788,7.4881,213.77,213.58,76.53962961]
[1733804118789,0.87723481,213.76,213.59,27.54038203]
[1733804118983,0.87723481,213.76,213.51,69.54038203]
[1733804118984,0.87723481,213.76,213.56,27.54038203]
[1733804119174,0.87723481,213.76,213.59,45.14777404]
[1733804119884,0.87723481,213.76,213.58,45.14777404]
[1733804119885,20.0,213.74,213.58,45.14777404]
[1733804120187,20.0,213.74,213.6,45.14777404]
[1733804120188,0.87750674,213.73,213.6,45.14777404]
[1733804120404,0.87750674,213.73,213.59,45.14777404]
[1733804120724,0.87750674,213.73,213.53,10.0]
[1733804120725,0.87750674,213.73,213.6,45.14777404]
[1733804121092,20.0,213.74,213.6,45.14777404]
[1733804121293,0.87735705,213.73,213.6,45.14777404]
[1733804121527,20.0,213.74,213.62,45.14777404]
[1733804121721,20.0,213.74,213.61,45.14777404]
[1733804122100,7.4881,213.77,213.65,45.14777404]
[1733804122332,7.4881,213.77,213.66,45.14777404]
[1733804122530,7.4881,213.77,213.68,45.14777404]
[1733804122830,7.4881,213.77,213.63,23.776884]
[1733804122831,7.4881,213.77,213.7,45.14777404]
[1733804123037,7.4881,213.77,213.67,45.14777404]
[1733804123199,7.4881,213.77,213.68,357.14777404]
[1733804123403,7.4881,213.77,213.68,312.0]
[1733804124144,7.4881,213.77,213.65,45.14777404]
[1733804124297,7.4881,213.77,213.63,45.14777404]
[1733804124494,0.87723175,213.76,213.63,45.14777404]
[1733804124709,20.0,213.74,213.61,45.14777404]
[1733804124916,20.0,213.74,213.63,45.14777404]
[1733804125095,20.0,213.74,213.62,45.14777404]
[1733804125496,20.0,213.74,213.63,45.14777404]
[1733804125703,7.4881,213.77,213.61,10.0]
[1733804125921,7.4881,213.77,213.69,45.14777404]
[1733804126596,7.4881,213.77,213.66,45.14777404]
[1733804126795,7.4881,213.77,213.64,45.14777404]
[1733804127207,7.4881,213.77,213.66,312.0]
[1733804127608,0.877201,213.76,213.63,45.14777404]
[1733804127809,0.877201,213.76,213.62,45.14777404]
[1733804128408,20.0,213.74,213.6,45.14777404]
[1733804128599,20.0,213.74,213.63,45.14777404]
[1733804128805,7.4881,213.77,213.66,45.14777404]
[1733804129303,7.4881,213.77,213.56,70.0]
[1733804129304,0.8771527,213.76,213.62,45.14777404]
[1733804129507,0.8771527,213.76,213.61,45.14777404]
[1733804129811,0.8771527,213.76,213.62,45.14777404]
[1733804130003,0.8771527,213.76,213.64,45.14777404]
[1733804130511,0.8771527,213.76,213.56,47.7363]
[1733804130512,20.0,213.74,213.61,45.14777404]
[1733804130820,0.87726405,213.76,213.62,357.14777404]
[1733804131137,0.87726405,213.76,213.63,45.14777404]
[1733804131679,20.0,213.74,213.62,357.14777404]
[1733804131839,20.0,213.74,213.63,45.14777404]
[1733804132197,20.0,213.74,213.61,45.14777404]
[1733804132402,0.87733632,213.73,213.55,45.14777404]
[1733804133326,0.87733632,213.73,213.56,45.14777404]
[1733804133506,0.87733632,213.73,213.57,45.14777404]
[1733804134217,0.87733632,213.73,213.6,45.14777404]
[1733804134419,0.87733632,213.73,213.59,45.14777404]
[1733804134936,3.8719,213.74,213.61,45.14777404]
[1733804135114,3.8719,213.74,213.54,47.806884]
[1733804135115,3.8719,213.74,213.62,45.14777404]
[1733804135313,0.87730647,213.73,213.62,312.0]
[1733804135524,0.87730647,213.73,213.59,45.14777404]
[1733804135738,0.87730647,213.73,213.55,45.14777404]
[1733804136335,20.0,213.69,213.53,45.14777404]
[1733804136561,20.87777552,213.68,213.51,49.82037404]
[1733804136718,20.87777552,213.68,213.52,45.14777404]
[1733804137044,20.87777552,213.68,213.53,45.14777404]
[1733804137350,20.87777552,213.68,213.52,45.14777404]
[1733804137644,20.87777552,213.68,213.51,45.14777404]
[1733804137818,20.87777552,213.68,213.45,4.7994]
[1733804137819,20.0,213.64,213.48,45.14777404]
[1733804138015,0.87789233,213.63,213.48,45.14777404]
[1733804138213,0.87789233,213.63,213.49,45.14777404]
[1733804138446,0.87789233,213.63,213.49,357.14777404]
[1733804138809,0.87789233,213.63,213.5,45.14777404]
[1733804139125,0.87789233,213.63,213.48,45.14777404]
[1733804139317,0.87789233,213.63,213.49,45.14777404]
[1733804140226,0.87789233,213.63,213.45,4.7994]
[1733804140227,27.648784,213.62,213.47,45.14777404]
[1733804140429,6.4163,213.58,213.45,45.14777404]
[1733804140642,0.87803433,213.57,213.45,45.14777404]
[1733804141358,0.87803433,213.57,213.42,27.81682905]
[1733804141562,20.0,213.55,213.41,27.81682905]
[1733804141740,20.0,213.5,213.37,27.81682905]
[1733804141923,0.87843313,213.49,213.34,27.81682905]
[1733804142251,0.87843313,213.49,213.34,312.0]
[1733804142420,23.776884,213.48,213.33,0.5843442]
[1733804142751,6.1042,213.44,213.33,28.40117325]
[1733804143122,6.98275019,213.44,213.33,28.40117325]
[1733804143322,6.98275019,213.44,213.33,0.5843442]
[1733804143725,6.1042,213.44,213.33,45.83829883]
[1733804144328,6.1042,213.44,213.33,0.5843442]
[1733804144735,6.1042,213.44,213.33,45.83829883]
[1733804144933,6.1042,213.44,213.34,45.25395463]
[1733804145259,6.1042,213.44,213.33,0.5843442]
[1733804145260,6.1042,213.44,213.36,45.25395463]
[1733804145433,6.1042,213.44,213.37,312.0]
[1733804145625,6.1042,213.44,213.33,0.5843442]
[1733804145827,6.1042,213.44,213.34,45.25395463]
[1733804146250,6.1042,213.44,213.36,45.25395463]
[1733804146569,6.1042,213.44,213.4,45.25395463]
[1733804146731,6.1042,213.54,213.4,45.25395463]
[1733804146932,0.87820781,213.53,213.4,45.25395463]
[1733804147546,6.1042,213.54,213.42,45.25395463]
[1733804147744,0.8781621,213.53,213.42,45.25395463]
[1733804148055,0.8781621,213.53,213.41,45.25395463]
[1733804148223,0.8781621,213.53,213.42,45.25395463]
[1733804148224,0.87820607,213.53,213.42,45.25395463]
[1733804148431,0.87819043,213.53,213.41,45.25395463]
[1733804148631,0.8781806,213.53,213.43,312.0]
[1733804150233,20.0,213.51,213.36,45.25395463]
[1733804150442,0.87840349,213.5,213.33,0.5843442]
[1733804150754,20.0,213.45,213.33,0.5843442]
[1733804150944,0.87872445,213.44,213.33,0.5843442]
[1733804153129,0.87872445,213.44,213.33,312.5843442]
[1733804156366,0.87872445,213.44,213.33,0.5843442]
[1733804158070,20.0,213.4,213.33,0.5843442]
[1733804158258,0.87892915,213.39,213.33,0.5843442]
[1733804161258,20.87892915,213.39,213.33,0.5843442]
[1733804161965,0.87892915,213.39,213.33,0.5843442]
[1733804162351,20.87892915,213.39,213.33,0.5843442]
[1733804162566,20.0,213.35,213.33,0.5843442]
[1733804162873,20.0,213.35,213.15,45.25395463]
[1733804162874,20.0,213.29,213.15,45.25395463]
[1733804163049,0.87932931,213.28,213.13,45.25395463]
[1733804163249,20.0,213.24,213.12,0.5843442]
[1733804163451,0.87960796,213.23,213.12,0.5843442]
[1733804163644,20.0,213.24,213.14,27.89927936]
[1733804163848,20.0,213.24,213.13,27.89927936]
[1733804164049,20.0,213.24,213.12,28.48362356]
[1733804164249,0.87941364,213.23,213.12,0.5843442]
[1733804164672,20.87941364,213.23,213.12,0.5843442]
[1733804165358,0.87939603,213.22,213.12,312.5843442]
[1733804165555,20.0,213.24,213.12,312.5843442]
[1733804165781,0.87941496,213.23,213.12,312.5843442]
[1733804166077,20.0,213.24,213.12,312.5843442]
[1733804166290,0.87940631,213.23,213.12,312.5843442]
[1733804167346,0.87940631,213.23,213.12,0.5843442]
[1733804168475,20.0,213.22,213.12,0.5843442]
[1733804168783,0.87959855,213.21,213.12,0.5843442]
[1733804169067,6.1042,213.19,213.12,0.5843442]
[1733804169244,20.0,213.16,213.12,0.5843442]
[1733804169666,0.87968835,213.15,213.12,0.5843442]
[1733804170780,0.87973527,213.14,213.12,0.5843442]
[1733804171079,0.87973527,213.14,212.97,8.42792599]
[1733804171080,0.87973527,213.14,212.93,3.7457]
[1733804171263,6.6312,213.09,212.93,3.7457]
[1733804171459,20.0,213.06,212.93,3.7457]
[1733804171653,0.88021177,213.05,212.93,3.7457]
[1733804171851,6.6312,213.09,212.96,27.89927936]
[1733804171852,0.88024922,213.08,212.96,27.89927936]
[1733804172050,6.6312,213.09,212.97,27.89927936]
[1733804172273,6.6312,213.09,212.93,3.7457]
[1733804172450,6.6312,213.09,212.96,27.89927936]
[1733804172652,6.6312,213.09,212.99,27.89927936]
[1733804173293,20.0,213.06,212.96,27.89927936]
[1733804173465,0.88030293,213.05,212.93,27.89927936]
[1733804173658,0.88030293,213.05,212.95,27.89927936]
[1733804173859,0.88030293,213.05,212.94,27.89927936]
[1733804174058,0.88030293,213.05,212.95,312.0]
[1733804174289,0.88030293,213.05,212.9,0.5843442]
[1733804174497,43.776884,213.04,212.9,0.5843442]
[1733804174793,20.0,213.0,212.9,0.5843442]
[1733804174965,0.88057278,212.99,212.9,0.5843442]
[1733804175702,20.88057278,212.99,212.9,0.5843442]
[1733804175993,20.0,212.95,212.9,0.5843442]
[1733804176296,20.0,212.95,212.7,80.0]
[1733804176297,20.0,212.9,212.7,3.7457]
[1733804176589,0.88109851,212.89,212.8,27.89927936]
[1733804176888,0.88109851,212.89,212.7,3.7457]
[1733804176889,0.88079909,212.88,212.7,5.63398949]
[1733804177094,0.88086779,212.87,212.79,27.89927936]
[1733804177283,0.8809728,212.89,212.7,5.63398949]
[1733804177590,0.8809728,212.89,212.76,27.89927936]
[1733804177784,0.8809728,212.89,212.78,27.89927936]
[1733804178300,20.0,212.9,212.8,27.89927936]
[1733804178481,20.0,212.9,212.82,27.89927936]
[1733804179365,6.6312,212.93,212.85,27.89927936]
[1733804179606,6.6312,212.93,212.83,27.89927936]
[1733804179607,0.88062316,212.92,212.83,27.89927936]
[1733804179889,6.6312,212.93,212.85,27.89927936]
[1733804180290,6.6312,212.99,212.87,27.89927936]
[1733804180595,0.88053939,212.98,212.85,27.89927936]
[1733804180965,0.88053939,212.98,212.83,31.64497936]
[1733804181162,0.88053939,212.98,212.79,6.6199]
[1733804181163,20.88053939,212.98,212.79,27.89927936]
[1733804181381,20.0,212.92,212.77,41.64497936]
[1733804181719,0.88098625,212.91,212.79,27.89927936]
[1733804181902,0.88098625,212.91,212.77,41.64497936]
[1733804182074,20.0,212.87,212.77,10.0]
[1733804182398,10.0,212.89,212.77,10.0]
[1733804182399,20.88122348,212.86,212.77,10.0]
[1733804182991,0.88122348,212.86,212.77,10.0]
[1733804187370,20.0,212.82,212.77,10.0]
[1733804187571,0.88127987,212.81,212.77,10.0]
[1733804188334,0.8812511,212.85,212.77,10.0]
[1733804188516,20.0,212.81,212.77,10.0]
[1733804188713,0.88145504,212.8,212.77,10.0]
[1733804188918,20.0,212.76,212.69,0.5843442]
[1733804189115,20.0,212.74,212.69,0.5843442]
[1733804189323,0.88176767,212.73,212.69,0.5843442]
[1733804189708,20.88176767,212.73,212.69,0.5843442]
[1733804190036,0.88176767,212.73,212.69,0.5843442]
[1733804190519,0.88152082,212.72,212.69,0.5843442]
[1733804190725,0.88161286,212.75,212.69,0.5843442]
[1733804191304,0.88143338,212.78,212.69,0.5843442]
[1733804191900,6.0149,212.79,212.69,28.48362356]
[1733804192999,0.88130273,212.78,212.69,0.5843442]
[1733804193204,20.0,212.76,212.69,0.5843442]
[1733804193399,0.88151984,212.75,212.69,0.5843442]
[1733804194035,20.0,212.76,212.69,0.5843442]
[1733804194246,0.88139052,212.75,212.69,0.5843442]
[1733804194546,6.0149,212.79,212.69,312.5843442]
[1733804194837,20.0,212.76,212.69,0.5843442]
[1733804195143,0.88150655,212.75,212.69,0.5843442]
[1733804196021,6.0149,212.79,212.69,0.5843442]
[1733804196022,6.0149,212.79,212.69,46.13210587]
[1733804196240,6.0149,212.79,212.69,0.5843442]
[1733804196437,0.8812429,212.78,212.69,0.5843442]
[1733804196832,6.0149,212.79,212.71,45.54776167]
[1733804197030,6.0149,212.85,212.73,45.54776167]
[1733804197222,6.0149,212.85,212.69,0.5843442]
[1733804197223,0.88105228,212.84,212.69,0.5843442]
[1733804197421,0.88105228,212.84,212.69,46.75464048]
[1733804198055,0.88105228,212.84,212.72,45.54776167]
[1733804198365,249.24656829,213.08,212.8,45.54776167]
[1733804198366,6.0149,212.9,212.8,45.54776167]
[1733804198742,6.0149,212.9,212.75,23.776884]
[1733804198743,6.0149,212.9,212.78,45.54776167]
[1733804198924,0.8808052,212.89,212.78,45.54776167]
[1733804199275,0.8808052,212.89,212.77,45.54776167]
[1733804199747,0.8808052,212.89,212.73,3.98562431]
[1733804199748,20.0,212.87,212.78,45.54776167]
[1733804199955,6.0149,212.9,212.8,45.54776167]
[1733804200131,0.88089456,212.89,212.79,45.54776167]
[1733804200524,0.88089456,212.89,212.75,0.62174751]
[1733804200525,0.88089456,212.89,212.77,45.54776167]
[1733804201453,6.0149,212.9,212.8,45.54776167]
[1733804201645,6.0149,212.9,212.81,45.54776167]
[1733804202144,6.0149,212.9,212.82,45.54776167]
[1733804202650,6.0149,212.9,212.78,0.62187635]
[1733804202841,6.0149,212.9,212.81,45.54776167]
[1733804203052,6.0149,212.9,212.8,45.54776167]
[1733804203243,0.88075105,212.89,212.77,45.54776167]
[1733804203451,20.0,212.87,212.77,45.54776167]
[1733804203758,0.88108213,212.86,212.74,45.54776167]
[1733804204254,0.88108213,212.86,212.73,48.91156167]
[1733804204644,0.88108213,212.86,212.73,3.3638]
[1733804204832,0.88108213,212.86,212.73,48.91156167]
[1733804205035,0.88108213,212.86,212.71,45.54776167]
[1733804205242,20.0,212.85,212.71,45.54776167]
[1733804205451,20.88121099,212.84,212.69,46.13210587]
[1733804205749,20.88121099,212.84,212.72,45.54776167]
[1733804205922,0.88111024,212.87,212.76,45.54776167]
[1733804206127,0.88111024,212.87,212.77,45.54776167]
[1733804206849,0.88093395,212.89,212.77,45.54776167]
[1733804207425,20.0,212.87,212.77,45.54776167]
[1733804207648,0.88094796,212.86,212.76,45.54776167]
[1733804207940,20.0,212.87,212.77,46.16960849]
[1733804208139,6.0149,212.9,212.78,358.16934605]
[1733804208341,6.0149,212.9,212.79,46.1694071]
[1733804208555,6.512,212.95,212.85,45.54776167]
[1733804208850,6.512,212.95,212.86,46.1688144]
[1733804209757,6.512,213.04,212.9,45.54776167]
[1733804209939,0.88030912,213.03,212.91,45.54776167]
[1733804210138,0.88030912,213.03,212.89,45.54776167]
[1733804210335,0.88030912,213.03,212.86,46.16833831]
[1733804210561,0.88030912,213.03,212.86,0.62057664]
[1733804210739,0.88030912,213.03,212.85,45.54776167]
[1733804210953,0.88030912,213.03,212.86,46.16886712]
[1733804211141,23.776884,213.02,212.86,46.16886712]
[1733804211345,16.512,213.04,212.86,46.16886712]
[1733804211346,23.776884,213.0,212.86,46.16886712]
[1733804211546,20.0,212.97,212.86,46.16886712]
[1733804211771,0.88055975,212.96,212.85,312.0]
[1733804211968,20.0,212.92,212.73,2.86491995]
[1733804212170,20.0,212.92,212.75,45.54776167]
[1733804212171,0.8810254,212.91,212.75,45.54776167]
[1733804212352,20.0,212.87,212.75,45.54776167]
[1733804212537,0.88094893,212.86,212.73,45.54776167]
[1733804212737,0.88094893,212.86,212.73,46.16978912]
[1733804212937,0.88094707,212.85,212.73,45.54776167]
[1733804213138,0.88094707,212.85,212.71,45.54776167]
[1733804213361,0.88094707,212.85,212.73,45.54776167]
[1733804213666,0.88101345,212.86,212.74,0.62198529]
[1733804213965,0.88101345,212.86,212.73,45.54776167]
[1733804214139,0.88100798,212.89,212.75,45.54776167]
[1733804214338,0.88085791,212.91,212.78,45.54776167]
[1733804214566,0.88085791,212.91,212.76,0.62167422]
[1733804214567,0.88085791,212.91,212.8,45.54776167]
[1733804214766,1.23681551,212.94,212.8,45.54776167]
[1733804215062,1.23681551,212.94,212.85,312.0]
[1733804215739,1.23681551,212.94,212.73,12.86491995]
[1733804215740,20.0,212.88,212.62,4.96881215]
[1733804215936,50.115384,212.86,212.65,45.54776167]
[1733804216140,23.776884,212.84,212.66,0.62250646]
[1733804216365,20.0,212.81,212.67,45.54776167]
[1733804216561,0.88128314,212.8,212.67,45.54776167]
[1733804217077,0.88128314,212.8,212.67,46.17023676]
[1733804217275,20.0,212.81,212.69,45.54776167]
[1733804217457,0.88120565,212.83,212.7,0.62234245]
[1733804217649,0.88120565,212.83,212.71,45.54776167]
[1733804217847,20.0,212.83,212.71,45.54776167]
[1733804218392,6.3385,212.86,212.75,45.54776167]
[1733804218685,6.3385,212.86,212.81,312.0]
[1733804218898,6.3385,212.86,212.75,45.54776167]
[1733804219188,1.237129,212.94,212.71,3.7438]
[1733804219189,6.3385,212.93,212.77,45.54776167]
[1733804219369,0.88081719,212.92,212.77,45.54776167]
[1733804220390,20.0,212.9,212.77,45.54776167]
[1733804221584,20.0,212.9,212.78,0.62156816]
[1733804221833,20.0,212.9,212.78,312.62156816]
[1733804221964,20.0,212.9,212.79,45.54776167]
[1733804222791,20.0,212.9,212.71,73.7438]
[1733804222792,6.3385,212.93,212.81,45.54776167]
[1733804222975,6.3385,212.93,212.83,45.54776167]
[1733804223160,6.3385,212.93,212.84,0.6211677]
[1733804223586,6.3385,212.93,212.86,45.54776167]
[1733804224088,6.3385,212.93,212.82,45.54776167]
[1733804224263,6.3385,212.99,212.88,45.54776167]
[1733804224464,6.3385,212.99,212.89,0.62070752]
[1733804224871,6.3385,212.99,212.9,45.54776167]
[1733804225054,6.3385,212.99,212.91,0.62064014]
[1733804225261,6.3385,212.99,212.92,45.54776167]
[1733804225459,6.3385,212.99,212.86,10.0]
[1733804225460,6.3385,213.06,212.94,45.54776167]
[1733804225676,6.3385,213.06,212.96,45.54776167]
[1733804227281,6.3385,213.06,212.98,45.54776167]
[1733804228201,6.3385,213.12,213.04,45.54776167]
[1733804228782,6.3385,213.12,212.99,0.61985871]
[1733804228783,6.3385,213.12,213.02,45.54776167]
[1733804229085,0.87985691,213.11,212.98,45.54776167]
[1733804229286,6.3385,213.12,213.02,45.54776167]
[1733804229602,6.3385,213.12,213.04,45.54776167]
[1733804230195,6.3385,213.12,213.04,357.54776167]
[1733804230393,0.87995514,213.18,213.06,45.54776167]
[1733804230590,6.3385,213.19,213.1,45.54776167]
[1733804230993,0.87947412,213.18,213.08,45.54776167]
[1733804231503,6.3385,213.19,213.09,0.61921991]
[1733804232197,0.87955067,213.18,213.06,45.54776167]
[1733804232397,6.3385,213.19,213.08,45.54776167]
[1733804232606,6.3385,213.19,213.1,45.54776167]
[1733804233208,6.3385,213.19,213.12,45.54776167]
[1733804233414,6.3385,213.19,213.1,45.54776167]
[1733804233712,6.3385,213.19,213.12,357.54776167]
[1733804233898,6.3385,213.19,213.13,0.61875185]
[1733804234803,6.3385,213.19,213.03,10.0]
[1733804234804,0.87942211,213.18,213.03,45.54776167]
[1733804235111,0.87942211,213.18,212.96,59.29156167]
[1733804235112,20.0,213.12,212.97,46.1672718]
[1733804235284,6.4081,213.1,212.94,45.54776167]
[1733804235485,20.0,213.07,212.92,45.54776167]
[1733804235704,0.88026064,213.06,212.93,0.62047968]
[1733804236009,0.88026064,213.06,212.9,3.4411]
[1733804236010,0.88026064,213.06,212.94,45.54776167]
[1733804236224,0.88026064,213.06,212.91,45.54776167]
[1733804236513,23.776884,213.05,212.89,45.54776167]
[1733804236688,20.0,213.02,212.89,45.54776167]
[1733804236886,20.0,213.02,212.9,46.16857899]
[1733804237083,2.73761884,213.09,212.93,45.54776167]
[1733804237392,20.0,213.07,212.96,45.54776167]
[1733804237718,20.0,213.07,212.93,0.62031065]
[1733804237719,0.88012323,213.06,212.95,45.54776167]
[1733804237898,0.8800772,213.06,212.94,45.54776167]
[1733804238085,20.0,213.07,212.95,46.16802039]
[1733804238288,6.4081,213.1,212.98,45.54776167]
[1733804238491,0.87999377,213.09,212.95,0.62025872]
[1733804238701,20.0,213.07,212.93,45.54776167]
[1733804238896,0.88016505,213.06,212.93,45.54776167]
[1733804239102,0.88016505,213.06,212.95,45.54776167]
[1733804239431,20.0,213.07,212.96,46.16788233]
[1733804240223,20.0,213.07,212.97,45.54776167]
[1733804240388,0.87997354,213.09,212.98,0.61990547]
[1733804240601,6.4081,213.1,212.98,0.61990547]
[1733804240902,6.4081,213.1,213.0,45.54776167]
[1733804241121,6.4081,213.1,213.02,45.54776167]
[1733804241288,6.4081,213.1,213.03,45.54776167]
[1733804241490,0.5843442,213.22,213.07,45.54776167]
[1733804241491,3.83843409,213.16,213.07,45.54776167]
[1733804241722,3.83843409,213.16,213.08,46.166973]
[1733804241929,3.83843409,213.16,213.1,45.54776167]
[1733804242134,3.83843409,213.16,213.02,70.0]
[1733804242135,0.5843442,213.22,213.13,45.54776167]
[1733804242290,0.5843442,213.22,213.11,0.61858226]
[1733804242495,0.8794823,213.21,213.04,45.54776167]
[1733804242688,0.8794823,213.21,213.05,0.61943736]
[1733804242995,0.5843442,213.22,213.09,45.54776167]
[1733804243518,0.5843442,213.22,213.11,45.54776167]
[1733804243889,0.5843442,213.22,213.13,45.54776167]
[1733804244089,0.5843442,213.22,213.15,312.0]
[1733804244719,0.5843442,213.22,213.09,45.54776167]
[1733804244930,1.46385761,213.22,213.09,45.54776167]
[1733804245292,20.0,213.2,213.09,45.54776167]
[1733804245486,0.5843442,213.22,213.12,45.54776167]
[1733804245712,0.5843442,213.22,213.13,0.61860978]
[1733804246389,0.5843442,213.22,213.14,45.54776167]
[1733804246618,0.5843442,213.22,213.19,45.54776167]
[1733804247118,0.5843442,213.22,213.2,46.16604555]
[1733804247313,0.5843442,213.22,213.2,0.61828388]
[1733804247491,0.5843442,213.22,213.2,312.61828388]
[1733804247701,0.5843442,213.22,213.2,312.0]
[1733804248827,0.5843442,213.22,213.21,0.61811904]
[1733804249125,0.5843442,213.22,213.21,46.16588071]
[1733804250123,0.5843442,213.22,213.21,56.16588071]
[1733804250624,0.05210125,213.22,213.21,159.94276471]
[1733804250825,3.4204,213.43,213.26,20.0]
[1733804251122,0.5843442,213.44,213.26,20.0]
[1733804251123,0.87856484,213.42,213.3,45.54776167]
[1733804251296,0.87856484,213.42,213.25,45.54776167]
[1733804251695,10.87856484,213.42,213.21,45.54776167]
[1733804252003,10.0,213.39,213.19,45.54776167]
[1733804252201,24.65603039,213.38,213.19,45.54776167]